Cogmind - Beta 14 @@@ ROGUE MODE // 2024.11.19 @ 19:56:15 Player: Beleaguer Result: Destroyed by L-31 Rogue with Katana Performance ------------- Evolutions (0) 0 Regions Visited (4) 800 Robots Destroyed (22) 110 Value Destroyed (429) 429 Prototype IDs (23) 460 Alien Tech Used (0) 0 Bonus (300) 300 TOTAL SCORE: 2099 Bonus ------- Aligned with FarCom 300 Cogmind --------- Core Integrity 0/250 Matter 276/300 Energy 85/100 System Corruption 0% Temperature Cool (41) Movement Core (200) Ox3 Location -9/Mines Parts ------- > --- POWER (1) -------- (None) > --- PROPULSION (2) --- (None) > --- UTILITY (2) ------ Medium Storage Unit > --- WEAPON (2) ------- Small Laser Light Assault Rifle > --- INVENTORY (10) --- Aluminum Leg Heat Sink Trap Reconfigurator Grenade Launcher Mining Laser Peak State ------------ > --- POWER ------------ Light Nuclear Core > --- PROPULSION ------- Aluminum Leg Aluminum Leg > --- UTILITY ---------- Improved Heat Sink Small Storage Unit > --- WEAPON ----------- Light Assault Rifle Light Assault Rifle > --- INVENTORY -------- Ion Engine Nuclear Core Aluminum Leg Aluminum Leg Heat Sink Small Laser Grenade Launcher Mining Laser [Rating: 12] Favorites ----------- Power Ion Engine Engine Ion Engine Power Core Light Nuclear Core Propulsion Aluminum Leg Leg Aluminum Leg Utility Small Storage Unit Device Improved Heat Sink Storage Small Storage Unit Weapon Light Assault Rifle Energy Gun Medium Laser Ballistic Gun Light Assault Rifle Launcher Grenade Launcher Build | -11 -10 -10 -10 -9 ------- Run | Yrd Mat Min Exi Min Slots Evolved . | . . . . . Power . | . . . . . Propulsion . | . . . . . Utility . | . . . . . Weapon . | . . . . . Parts Attached 23 | 7 7 4 2 3 Power 4 | 1 1 . 1 1 Engine 3 | 1 1 . . 1 Core 1 | . . . 1 . Reactor . | . . . . . Propulsion 7 | 2 3 1 . 1 Treads . | . . . . . Leg 7 | 2 3 1 . 1 Wheel . | . . . . . Hover . | . . . . . Flight . | . . . . . Utility 5 | 1 2 1 1 . Device 3 | . 2 1 . . Storage 2 | 1 . . 1 . Processor . | . . . . . Hackware . | . . . . . Protection . | . . . . . Artifact . | . . . . . Weapon 7 | 3 1 2 . 1 Energy Gun 3 | 2 . . . 1 Energy Cannon . | . . . . . Ballistic Gun 3 | 1 1 1 . . Ballistic Cannon . | . . . . . Launcher 1 | . . 1 . . Special Weapon . | . . . . . Impact Weapon . | . . . . . Slashing Weapon . | . . . . . Piercing Weapon . | . . . . . Special Melee Weapon . | . . . . . Unidentified Prototypes . | . . . . . Parts Lost 12 | . 3 2 . 7 Power 2 | . . . . 2 Propulsion 4 | . 1 . . 3 Utility 3 | . 1 1 . 1 Weapon 3 | . 1 1 . 1 Highest Loss Streak 7 | . 2 2 . 7 To Critical Strikes . | . . . . . Average Slot Usage (%) 99 | . 99 98 100 57 Engine 7 | . 14 14 . . Core 6 | . . . 13 . Leg 27 | . 27 28 28 14 Device 13 | . 14 12 14 . Storage 14 | . 14 14 14 14 Energy Gun 5 | . 14 . . 7 Ballistic Gun 22 | . 14 27 28 21 Peak Build Rating 12 | 6 8 10 12 12 Average Rating 9 | 5 7 9 11 6 On Entrance 7 | . 6 8 10 12 Naked Turns . | . . . . . Heaviest Build 18 | 11 14 13 18 17 Greatest Support 20 | 20 20 20 20 20 Greatest Overweight (x) . | . . . . . Average Overweight (x) . | . . . . . Largest Inventory Capacity 10 | 8 8 8 10 10 Average Capacity 8 | 7 8 8 9 10 Most Carried 8 | 5 8 8 8 8 Average Carried 6 | 3 6 7 7 6 Final Capacity 10 | 8 8 8 10 10 Final Carried 8 | 5 8 8 8 5 Class Distribution -------------------- 62% | Scavenger-Mutant 37% | Mutant Dominant Class ---------------- Mutant | -10/Materials Scavenger-Mutant | -10/Mines Scavenger-Mutant | -10/Exiles Mutant | -9/Mines Resources | -11 -10 -10 -10 -9 ----------- Run | Yrd Mat Min Exi Min Matter Collected 455 | 278 112 65 . . Remotely 41 | . 41 . . . Salvage Created 591 | 123 364 104 . . Parts 46 | 8 32 6 . . Haulers Intercepted . | . . . . . Recyclers Shooed . | . . . . . Parts Field Recycled . | . . . . . Retrieved Matter . | . . . . . Parts Self-Destructed . | . . . . . Prevented . | . . . . . Kills | -11 -10 -10 -10 -9 ------- Run | Yrd Mat Min Exi Min Combat Hostiles Destroyed 14 | . 12 2 . . Guns 13 | . 12 1 . . AOE 1 | . . 1 . . Classes Destroyed 5 | 2 3 . . . Builder 2 | . 1 1 . . Tunneler 5 | 4 1 . . . Recycler 1 | 1 . . . . Swarmer 6 | . 6 . . . Grunt 8 | . 6 2 . . Best Kill Streak 5 | 2 5 2 . . Combat Bots Only 5 | . 5 2 . . Max Kills in Single Turn 1 | 1 1 1 . . Gunslinging . | . . . . . Exploded 1 | . . 1 . . Melee . | . . . . . Uniques/NPCs Destroyed . | . . . . . Combat | -11 -10 -10 -10 -9 -------- Run | Yrd Mat Min Exi Min Hostile Shots Fired 137 | . 93 10 . 34 Missed 36 | . 29 1 . 6 Damage Taken 1335 | . 689 116 . 530 Core 280 | . 140 32 . 108 Absorbed by Shields . | . . . . . Core Remaining (%) 100 | 100 . . . . Volleys Fired 77 | 12 48 10 . 7 Largest 2 | 2 2 2 . 2 Hottest 70 | 70 70 70 . 60 Shots Fired 149 | 20 95 20 . 14 Gun 148 | 20 95 19 . 14 Cannon . | . . . . . Launcher 1 | . . 1 . . Special . | . . . . . Kinetic 81 | 8 47 17 . 9 Thermal 67 | 12 48 2 . 5 Explosive 1 | . . 1 . . Electromagnetic . | . . . . . Robot Hit Streak 12 | 5 6 3 . 12 Robot Miss Streak 5 | 1 5 4 . 2 Penetration Max . | . . . . . Secondary Targets 3 | . 3 . . . Max Gunslinging Chain 1 | . 1 . . . Shots Hit Robots 88 | 15 52 9 . 12 Core Hits 39 | 8 24 5 . 2 Critical Kills . | . . . . . Critical Parts Destroyed . | . . . . . Critical Strikes 2 | 1 1 . . . Burn 2 | 1 1 . . . Melee Attacks . | . . . . . Impact . | . . . . . Slashing . | . . . . . Piercing . | . . . . . Sneak Attacks . | . . . . . Combat Hostiles . | . . . . . Follow-up Attacks . | . . . . . Damage Inflicted 1085 | 176 668 133 . 108 Guns 906 | 176 553 69 . 108 Cannons . | . . . . . Explosions 179 | . 115 64 . . Melee . | . . . . . Ramming . | . . . . . Kinetic 378 | 53 204 69 . 52 Thermal 528 | 123 349 . . 56 Explosive 179 | . 115 64 . . Electromagnetic . | . . . . . Impact . | . . . . . Slashing . | . . . . . Piercing . | . . . . . Highest Corruption . | . . . . . Average Corruption . | . . . . . Corruption Purged . | . . . . . Corruption Blocked . | . . . . . Overload Shots . | . . . . . Overflow Damage 33 | . 33 . . . Projectiles . | . . . . . Explosions 33 | . 33 . . . Melee . | . . . . . Knockbacks . | . . . . . Impact . | . . . . . Kinetic . | . . . . . Secondary . | . . . . . Self-Inflicted Damage 40 | . 40 . . . Shots 1 | . 1 . . . Rammed . | . . . . . Targets Rammed 1 | . 1 . . . Kicked 1 | . 1 . . . Crushed . | . . . . . Highest Temperature 226 | 80 226 52 . 47 Average Temperature 68 | 30 81 30 . 23 Received Heat Transfer 390 | . 216 66 . 108 Siege Activations . | . . . . . Robots Corrupted . | . . . . . Combat Hostiles . | . . . . . Parts Fried . | . . . . . Impact Corruptions . | . . . . . Robots Melted . | . . . . . Combat Hostiles . | . . . . . Parts Melted 7 | 2 5 . . . Heat Transferred 1643 | 408 1110 . . 125 Parts Sabotaged . | . . . . . Parts Stolen . | . . . . . Parts Stripped . | . . . . . Power Chain Reactions . | . . . . . Alert | -11 -10 -10 -10 -9 ------- Run | Yrd Mat Min Exi Min Peak Influence 181 | 25 181 107 . 5 Initial 69 | . 16 69 . . Average 91 | 11 110 103 . . Maximum Alert Level . | . . . . . Low Security (%) 100 | 100 100 100 . 100 Level 1 . | . . . . . Level 2 . | . . . . . Level 3 . | . . . . . Level 4 . | . . . . . Level 5 . | . . . . . High Security . | . . . . . Max Security . | . . . . . Squads Dispatched 1 | . 1 . . . Investigation . | . . . . . Extermination . | . . . . . Reinforcement 1 | . 1 . . . Assault . | . . . . . Garrison . | . . . . . Intercept . | . . . . . Searches Triggered . | . . . . . Construction Impeded . | . . . . . Haulers Reinforced . | . . . . . Active Scanning Responses . | . . . . . Cargo Convoy Interrupts . | . . . . . Stealth | -11 -10 -10 -10 -9 --------- Run | Yrd Mat Min Exi Min Distress Signals 1 | . 1 . . . Communications Jammed . | . . . . . Distress Signals . | . . . . . Times Spotted 24 | . 19 2 . 3 Peak Tracking Total 7 | . 7 2 . 3 Tactical Retreats . | . . . . . Traps | -11 -10 -10 -10 -9 ------- Run | Yrd Mat Min Exi Min Traps Triggered . | . . . . . Indirectly . | . . . . . Trap Hack Attempts . | . . . . . Triggered . | . . . . . Disarmed . | . . . . . Reprogrammed . | . . . . . Reused . | . . . . . Traps Extracted . | . . . . . Installed . | . . . . . Triggered . | . . . . . Machines | -11 -10 -10 -10 -9 ---------- Run | Yrd Mat Min Exi Min Machines Disabled 2 | . 2 . . . Max in Single Turn 2 | . 2 . . . Machines Repaired . | . . . . . Machines Dismantled . | . . . . . Machines Sabotaged . | . . . . . Overloaded Fab Kills . | . . . . . Hacking | -11 -10 -10 -10 -9 --------- Run | Yrd Mat Min Exi Min Machines Accessed 5 | . . . 5 . Terminals . | . . . . . Fabricators . | . . . . . Repair Stations . | . . . . . Recycling Units . | . . . . . Scanalyzers . | . . . . . Garrison Access . | . . . . . Total Hacks 50 | . . . 50 . Successful 50 | . . . 50 . Failed . | . . . . . Catastrophic . | . . . . . Database Lockouts . | . . . . . Manual 1 | . . . 1 . Terminals . | . . . . . Fabricators . | . . . . . Repair Stations . | . . . . . Recycling Units . | . . . . . Scanalyzers . | . . . . . Garrison Access . | . . . . . Terminal Hacks 50 | . . . 50 . Record 49 | . . . 49 . Derelict Proto ID Bank 1 | . . . 1 . Fabricator Hacks . | . . . . . Repair Station Hacks . | . . . . . Recycling Unit Hacks . | . . . . . Scanalyzer . | . . . . . Garrison Access Hacks . | . . . . . Unauthorized Hacks . | . . . . . Terminals . | . . . . . Fabricators . | . . . . . Repair Stations . | . . . . . Recycling Units . | . . . . . Scanalyzers . | . . . . . Garrison Access . | . . . . . Data Cores Recovered . | . . . . . Used . | . . . . . Hacking Detections . | . . . . . Full Trace Events . | . . . . . Feedback Events . | . . . . . Feedback Blocked . | . . . . . Robot Schematics Acquired . | . . . . . Robots Built . | . . . . . Authchips . | . . . . . Time . | . . . . . Total Robot Build Rating . | . . . . . Part Schematics Acquired . | . . . . . Parts Built . | . . . . . Authchips . | . . . . . Time . | . . . . . Total Part Build Rating . | . . . . . Parts Repaired . | . . . . . Time . | . . . . . Parts Recycled . | . . . . . Recycled Matter . | . . . . . Retrieved Matter . | . . . . . Retrieved Components . | . . . . . Parts Scanalyzed . | . . . . . Part Schematics Acquired . | . . . . . Parts Damaged . | . . . . . Bothacking | -11 -10 -10 -10 -9 ------------ Run | Yrd Mat Min Exi Min Used RIF Installer . | . . . . . Robots Hacked . | . . . . . Non-combat . | . . . . . Combat . | . . . . . Robot Hacks Applied . | . . . . . Relay Couplers Released . | . . . . . Fabnet Peak Effective % . | . . . . . Robots Rewired . | . . . . . Allies Hacked . | . . . . . Hacks Repelled . | . . . . . Allies | -11 -10 -10 -10 -9 -------- Run | Yrd Mat Min Exi Min Total Allies . | . . . . . Largest Group . | . . . . . Highest-Rated Group . | . . . . . Highest-Rated Ally . | . . . . . Total Orders . | . . . . . Ally Attacks . | . . . . . Total Damage . | . . . . . Kills . | . . . . . Allies Corrupted . | . . . . . Allies Melted . | . . . . . Intel | -11 -10 -10 -10 -9 ------- Run | Yrd Mat Min Exi Min Robot Analysis Total . | . . . . . Derelict Logs Recovered 2 | . . 2 . . Drone Launches . | . . . . . Drone Recoveries . | . . . . . Exploration | -11 -10 -10 -10 -9 ------------- Run | Yrd Mat Min Exi Min Turns Passed 1836 | 153 627 229 804 23 Spaces Moved 1256 | 89 340 162 664 1 Core 3 | 3 . . . . Treads . | . . . . . Legs 1253 | 86 340 162 664 1 Wheels . | . . . . . Hover . | . . . . . Flight . | . . . . . Fastest Speed 50 | 50 120 120 120 120 Average Speed 119 | 117 120 120 120 120 Slowest Speed 120 | 120 120 120 120 120 Overloaded Moves . | . . . . . Propulsion Burnouts . | . . . . . Robots Hopped . | . . . . . Cave-ins Triggered . | . . . . . Exploration Rate (%) 36 | 4 36 44 93 3 Regions Visited 4 Branch Regions 3 Pre-discovered Areas 1 | . . . 1 . Known Exits Taken 1 | . . . 1 . Unknown Exits Taken 3 | 1 1 1 . . Scrap Searched . | . . . . . Spaces Dug . | . . . . . Terrain Destroyed 24 | . 21 3 . . Melee . | . . . . . Projectile . | . . . . . AOE 24 | . 21 3 . . Terrain Rammed . | . . . . . Walls Destroyed . | . . . . . Machines Disabled . | . . . . . Actions | -11 -10 -10 -10 -9 --------- Run | Yrd Mat Min Exi Min Total 1455 | 118 474 179 673 11 Wait 62 | . 62 . . . Move 1252 | 88 339 161 663 1 Hop . | . . . . . Pick Up 30 | 11 12 3 4 . Fast Attach . | . . . . . Attach 15 | 6 4 2 . 3 Detach . | . . . . . Swap 8 | 1 3 2 2 . Drop 10 | . 5 1 4 . Fire 77 | 12 48 10 . 7 Melee . | . . . . . Ram . | . . . . . Kick 1 | . 1 . . . Crush . | . . . . . Escape Stasis . | . . . . . Rewire . | . . . . . Trap . | . . . . . Miscellaneous . | . . . . . Route ------- -11/Scrapyard -10/Materials -10/Mines -10/Exiles (discovered 2 exits: *Min x2) -9/Mines History --------- Turn | Location | Event 7 | -11/Scrapyard | Discovered new exit (range 15) 154 | -11/Scrapyard | Entered Materials 314 | -10/Materials | Build established: Mutant 658 | -10/Materials | Core integrity fell below 50% 726 | -10/Materials | Discovered new exit (range 16) 781 | -10/Materials | Entered Mines 921 | -10/Mines | Learned 2 Materials zone layouts 985 | -10/Mines | Build established: Scavenger-Mutant 1001 | -10/Mines | Deemed a non-threat by the Exiles lab entrance 1003 | -10/Mines | Discovered new exit (range 5) 1010 | -10/Mines | Entered Exiles 1011 | -10/Exiles | Identified exit to Mines 1068 | -10/Exiles | Met 8R-AWN 1096 | -10/Exiles | Met EX-HEX 1188 | -10/Exiles | Met EX-DEC 1212 | -10/Exiles | Visited The Gauntlet 1494 | -10/Exiles | Met EX-BIN 1519 | -10/Exiles | Aligned with FarCom system 1520 | -10/Exiles | Given EX-Vault access code 1609 | -10/Exiles | Opened EX-Vault 1615 | -10/Exiles | Found Prototype Device 1626 | -10/Exiles | Identified Trap Reconfigurator 1650 | -10/Exiles | Warned to stay clear of 0b10 Research branches 1699 | -10/Exiles | Learned location of Zion (-7) 1814 | -10/Exiles | Left Exiles lab with Trap Reconfigurator 1814 | -10/Exiles | Entered Mines 1821 | -9/Mines | Core integrity fell below 20% 1837 | -9/Mines | Destroyed by L-31 Rogue with Katana Last Messages --------------- For a while now the data we've been getting from that quarter seems anything but impartial. >>Record "MSG004795-02" I just repaired it not long ago, I think someone on the outside is tampering with our system. --AM-PHS >>Record "MSG004964-01" Who left my Assembled plushie in the Analyzer again?! I'm not erasing this message until I get an answer. --BIN LOCATION=MINES GOAL=ESCAPE 01814_ Receiving FarCom transmissions... 01815_ Imp. Heat Sink destroyed. 01818_ Lgt. Nuclear Core destroyed. 01819_ Aluminum Leg destroyed. 01822_ Lgt. Assault Rifle destroyed. 01824_ Ion Engine destroyed. 01829_ Aluminum Leg destroyed. Map ----- +----------------------------------------------------+ | ?????????????????????????????????????????????????? | | ?????????????????????????????????????????????????? | | ?????????????????????????????????????????????????? | | ?????????????????????????????????????????????????? | | ?????????????????????????????????????????????????? | | ?????????????????????????????????????????????????? | | ?????????????????????????????????????????????????? | | ?????????????????????????????????????????????????? | | ?????????????????????????????????????????????????? | | ?????????????????????????????????????????????????? | | ????????????????????????#????#???????????????????? | | ???????????????????????? ??? #???????????????????? | | ???????????????????????? ??? #???????????????????? | | ???????????????????????? #?? #???????????????????? | | ???????????????????????? ## #???????????????????? | | ???????????????????????? ????????????????????? | | ???????????????????????? ????????????????????? | | ???????????????????????? ????????????????????? | | ???????????????????????? ?????????????????????? | | ????????????????????????# ?????????????????????? | | ????????????????????????# #?????????????????????? | | ???????????????????????## ##????????????????????? | | ???????????????????????# #????????????????????? | | ???????????????????????# g #????????????????????? | | ???????????????????????# #????????????????????? | | ???????????????????????#l@ #????????????????????? | | ???????????????????????# g #????????????????????? | | ???????????????????????# #????????????????????? | | ???????????????????????######????????????????????? | | ?????????????????????????????????????????????????? | | ?????????????????????????????????????????????????? | | ?????????????????????????????????????????????????? | | ?????????????????????????????????????????????????? | | ?????????????????????????????????????????????????? | | ?????????????????????????????????????????????????? | | ?????????????????????????????????????????????????? | | ?????????????????????????????????????????????????? | | ?????????????????????????????????????????????????? | | ?????????????????????????????????????????????????? | | ?????????????????????????????????????????????????? | | ?????????????????????????????????????????????????? | | ?????????????????????????????????????????????????? | | ?????????????????????????????????????????????????? | | ?????????????????????????????????????????????????? | | ?????????????????????????????????????????????????? | | | | | | | | | | | +----------------------------------------------------+ Best States ------------- Heat Dissipation 39 Energy Generation 14 Energy Capacity 250 Matter Stores 300 Matter Capacity 300 Sight Range 16 Terrain Scan Density 10 Evasion (%) 55 Item Schematics ----------------- None Robot Schematics ------------------ None Fabricated ------------ Nothing Alien Tech Used ----------------- None Achievements -------------- None Challenges ------------ None Game ------ Seed SuperchargedHardenedCleaver Manual? 0 Play Time 00:37:43 Cumulative 107.7 hours Start 2024.11.19 @ 19:14:08 End 2024.11.19 @ 19:56:15 Sessions 1 Manual Loads 0 Difficulty Rogue Special Mode None Game No. 31 Rogue 24 Adventurer 7 Explorer 0 Win Type - Total 0 Types 0/0/0/0/0/0/0/0/0 Lore% 15 Gallery% 26 Achievement% 20 Wizard Run 0 Options --------- Layout 1 ASCII 0 Keyboard 0 Movement Arrows Keybinds 0 Fullscreen 1 Font 16/SmallcapsGlow Map View 50x40 Zoom Use 0% Tactical HUD 1 Map Filters NONE Filters NONE Steam SD RUN: 3d16b776-f0ea-4966-9037-e8fb0d093819